bitfinex-derivatives/quotes_ETHF0:USTF0_20250905
["timestamp","ask_amount","ask_price","bid_price","bid_amount"]
[1757099216325,0.8007,4319.7,4319.6,0.2251]
[1757099216521,0.3396,4319.4,4319.0,3.2078]
[1757099216728,0.8007,4319.1,4319.0,3.2078]
[1757099216923,0.1433,4319.0,4318.9,0.235]
[1757099217131,0.8007,4318.9,4318.8,0.235]
[1757099217728,0.944,4318.5,4318.4,0.2251]
[1757099217934,0.944,4318.5,4317.5,3.2786]
[1757099217935,0.944,4318.0,4317.5,3.2078]
[1757099218235,0.944,4318.0,4317.6,0.235]
[1757099218535,0.8007,4317.1,4317.0,3.669]
[1757099218740,0.8007,4317.1,4317.0,0.6962]
[1757099219735,0.8007,4317.1,4316.5,3.4329]
[1757099219736,0.4611,4316.6,4316.5,3.4329]
[1757099219937,0.1433,4317.0,4316.5,3.9435]
[1757099220138,0.562,4316.9,4316.8,0.4612]
[1757099220342,0.8007,4316.9,4316.8,0.4612]
[1757099220545,0.8007,4316.9,4316.8,0.2251]
[1757099221036,0.4611,4316.9,4316.5,3.2078]
[1757099221241,0.4611,4316.9,4315.0,0.0614]
[1757099221242,0.8007,4316.1,4316.0,3.669]
[1757099221739,0.562,4316.1,4316.0,3.9435]
[1757099222044,0.3396,4316.1,4316.0,3.9435]
[1757099222446,0.3396,4316.4,4316.3,0.4612]
[1757099222748,0.3396,4316.9,4316.3,0.7357]
[1757099223046,0.8007,4316.9,4316.8,0.2251]
[1757099223936,0.1433,4316.5,4316.4,0.4611]
[1757099224145,0.944,4316.5,4316.4,0.4611]
[1757099224348,0.944,4316.5,4316.4,0.6972]
[1757099224645,0.944,4316.5,4316.4,0.9717]
[1757099225251,0.944,4316.5,4316.4,0.6972]
[1757099225741,0.944,4316.5,4316.4,0.9717]
[1757099226948,0.944,4316.5,4316.4,0.6972]
[1757099227648,0.7053,4316.5,4316.4,0.9717]
[1757099228151,0.3396,4316.5,4316.4,0.9717]
[1757099228849,0.944,4316.5,4316.4,0.6972]
[1757099229639,0.944,4316.5,4316.4,0.4611]
[1757099229850,0.944,4316.5,4316.4,0.6972]
[1757099230847,0.1433,4317.0,4316.4,0.9717]
[1757099231150,0.562,4316.7,4316.6,3.669]
[1757099231449,0.3396,4316.7,4316.6,3.9435]
[1757099231952,0.6044,4317.5,4317.4,0.2251]
[1757099232249,0.6044,4317.5,4317.4,0.4612]
[1757099232448,0.944,4317.5,4317.4,0.4612]
[1757099235350,0.944,4317.5,4317.4,0.7357]
[1757099235653,0.7053,4317.5,4317.4,0.7357]
[1757099236357,0.3396,4317.5,4317.4,0.7357]
[1757099236553,3.2078,4318.3,4317.3,0.236]
[1757099236744,0.8007,4317.9,4317.8,0.4612]
[1757099236949,0.2224,4317.4,4317.3,0.4611]
[1757099237151,0.8007,4317.4,4317.3,0.9717]
[1757099238859,0.3396,4317.4,4317.3,0.9717]
[1757099239245,0.5657,4317.4,4317.3,0.9717]
[1757099239457,0.8056,4317.4,4317.3,0.6972]
[1757099239652,0.8056,4317.4,4317.3,0.9593]
[1757099240050,0.3623,4317.4,4317.3,0.236]
[1757099240249,0.8283,4317.4,4317.3,0.236]
[1757099240651,0.8283,4317.4,4317.3,0.4723]
[1757099242053,0.8283,4317.4,4317.3,0.236]
[1757099242761,0.466,4317.2,4317.1,3.2078]
[1757099242958,0.8283,4317.2,4317.1,3.2078]
[1757099243255,4.8283,4317.2,4317.1,3.2078]
[1757099243655,4.8283,4317.2,4316.7,0.236]
[1757099243859,0.8283,4316.8,4316.7,0.236]
[1757099244750,0.8283,4316.8,4316.7,1.0649]
[1757099247452,0.8283,4316.8,4316.7,0.4723]
[1757099247960,0.8283,4316.8,4316.7,0.828]
[1757099248261,0.2261,4316.8,4316.7,1.0649]
[1757099248554,0.1433,4317.5,4317.1,0.3557]
[1757099248758,1.06096461,4317.4,4317.3,0.8289]
[1757099248947,0.466,4317.4,4317.3,1.0639]
[1757099249260,0.8283,4317.4,4317.3,1.0639]
[1757099249759,0.8283,4317.4,4317.3,0.7082]
[1757099250753,0.8283,4317.4,4317.3,0.4713]
[1757099253359,0.8283,4317.4,4317.3,1.0639]
[1757099255058,0.3623,4317.4,4317.3,1.0639]
[1757099255263,3.2078,4317.8,4317.4,0.3557]
[1757099255561,0.82136113,4317.7,4317.6,0.8289]
[1757099255962,0.2261,4317.7,4317.6,0.8289]
[1757099256161,0.8283,4317.7,4317.6,0.8289]
[1757099263472,0.8283,4317.7,4317.3,0.235]
[1757099263971,0.8283,4317.4,4317.3,0.7082]
[1757099264167,0.8283,4317.4,4317.3,0.4713]
[1757099265765,0.8283,4317.4,4317.3,0.235]
[1757099266774,0.8283,4317.4,4317.3,0.4713]
[1757099267973,0.8283,4317.4,4317.3,0.235]
[1757099268170,0.466,4317.4,4317.1,3.2078]
[1757099268372,0.3437,4317.3,4316.9,0.235]
[1757099268569,0.3437,4317.0,4316.9,0.9975]
[1757099268773,0.5822,4317.5,4317.4,0.4352]
[1757099268967,0.5822,4317.5,4317.4,0.7625]
[1757099269380,0.9259,4317.5,4317.4,0.7625]
[1757099272274,0.7958,4317.5,4317.4,0.7625]
[1757099275683,0.9269,4317.5,4317.4,0.7625]
[1757099276075,0.7958,4317.5,4317.4,0.7625]
[1757099278284,0.9269,4317.5,4317.4,0.5436]
[1757099278872,0.9269,4317.5,4317.4,0.2163]
[1757099279685,0.9269,4317.5,4317.4,0.7625]
[1757099280382,0.9269,4317.5,4317.3,0.235]
[1757099280578,0.5832,4317.5,4316.9,0.3273]
[1757099280777,0.5832,4317.5,4316.6,3.7514]
[1757099280778,0.7958,4316.7,4316.6,3.7514]
[1757099281379,0.7958,4316.7,4316.6,3.9703]
[1757099285783,0.7958,4316.7,4316.6,3.2078]
[1757099285979,0.7958,4316.7,4316.6,3.6591]
[1757099286180,0.7958,4316.7,4316.6,3.4241]
[1757099288188,0.7958,4316.7,4316.6,3.6591]
[1757099288888,0.7958,4316.7,4316.6,4.2053]
[1757099289291,0.5799,4317.0,4316.9,0.7625]
[1757099289794,0.5799,4317.1,4317.0,0.7625]
[1757099290390,0.1311,4317.5,4317.1,0.3273]
[1757099290591,0.7958,4317.2,4317.1,0.9975]
[1757099291091,0.4521,4316.9,4316.8,0.235]
[1757099291289,0.7958,4316.9,4316.8,0.235]
[1757099292195,0.7958,4316.9,4316.8,0.4513]
[1757099292587,0.3437,4317.2,4316.8,0.9975]
[1757099292790,0.2362,4317.2,4317.1,0.7625]
[1757099293289,0.5799,4317.2,4317.1,0.7625]
[1757099293496,0.7958,4317.2,4317.1,0.7625]
[1757099294391,0.7958,4317.2,4317.1,0.4352]
[1757099295298,0.7958,4317.2,4317.1,0.7625]
[1757099297397,0.7958,4317.2,4316.8,0.5623]
[1757099297398,0.3437,4317.1,4316.8,0.5623]
[1757099297606,0.5832,4317.0,4316.9,0.2163]
[1757099297894,0.9269,4317.0,4316.9,0.2163]
[1757099298093,0.9269,4317.0,4316.9,0.5436]
[1757099298997,0.9269,4317.0,4316.9,0.2163]
[1757099299701,0.9269,4317.0,4316.9,0.788]
[1757099301504,0.3466,4316.9,4316.6,3.7868]
[1757099301700,0.4302,4316.7,4316.6,4.0109]
[1757099301998,0.7768,4316.7,4316.6,4.0109]
[1757099303708,0.7768,4316.7,4316.6,4.2386]
[1757099305099,0.7768,4316.7,4316.6,3.2078]
[1757099305300,0.4718,4316.0,4315.6,0.344]
[1757099305501,0.7768,4315.7,4315.6,0.8031]
[1757099305697,0.7768,4315.7,4315.6,1.0308]
[1757099306500,0.7768,4315.7,4315.3,3.2078]
[1757099306699,0.2184,4314.8,4314.7,4.0036]
[1757099306900,0.7768,4314.8,4314.7,4.0036]
[1757099307100,0.7768,4314.8,4314.7,0.7958]
[1757099307401,0.5554,4314.5,4314.1,3.2078]
[1757099307599,0.4302,4314.2,4314.1,4.0109]
[1757099307904,0.7768,4314.2,4314.1,4.0109]
[1757099308590,0.7768,4314.2,4314.1,4.2386]
[1757099313403,0.7768,4314.2,4314.1,1.0308]
[1757099314304,0.1252,4314.5,4314.1,0.6868]
[1757099314604,0.565,4314.4,4314.3,0.7958]
[1757099314795,0.2184,4314.4,4314.3,0.7958]
[1757099315004,0.565,4315.0,4314.9,0.4518]
[1757099315197,0.3466,4315.4,4314.9,0.7958]
[1757099315504,0.4302,4314.7,4314.6,0.5681]
[1757099315701,0.7768,4314.7,4314.2,0.235]
[1757099315898,0.7768,4314.7,4314.2,0.344]
[1757099316098,0.3466,4314.6,4314.5,0.2241]
[1757099316299,0.7768,4314.6,4314.5,0.2241]
[1757099316501,0.7768,4314.6,4314.5,0.5681]
[1757099316708,0.7768,4314.6,4314.5,0.2241]
[1757099317403,0.2184,4314.0,4313.9,3.4319]
[1757099317608,0.7768,4314.0,4313.9,1.0308]
[1757099317907,0.902,4314.0,4313.9,1.0308]
[1757099318106,0.902,4314.0,4313.4,3.2078]
[1757099318107,0.5554,4314.0,4313.4,3.2078]
[1757099318297,0.902,4313.5,4313.4,3.2078]
[1757099318600,0.902,4313.5,4313.4,3.4319]
[1757099318800,0.902,4313.5,4313.0,0.1895119]
[1757099319000,0.3466,4313.4,4312.9,3.4428]
[1757099319207,0.902,4313.0,4312.9,4.0109]
[1757099319406,0.7768,4313.0,4312.9,4.2386]
[1757099320507,0.902,4313.0,4312.9,4.2386]
[1757099321010,0.7768,4313.0,4312.9,4.2386]
[1757099322010,0.565,4313.0,4312.9,4.2386]
[1757099322305,0.2184,4313.0,4312.9,4.2386]
[1757099322495,0.3466,4313.8,4313.3,0.344]
[1757099322698,0.2184,4313.4,4313.3,0.7958]
[1757099322895,3.5544,4313.9,4313.4,0.344]
[1757099323107,3.7728,4313.9,4313.8,0.7958]
[1757099323297,3.9846,4313.9,4313.8,0.7958]
[1757099323806,3.2078,4313.9,4313.8,0.7958]
[1757099324006,3.7728,4313.9,4313.8,0.7958]
[1757099324202,3.9846,4313.9,4313.8,0.7958]
[1757099324808,0.7768,4313.9,4313.8,0.7958]
[1757099325297,0.3466,4314.2,4313.8,0.7958]
[1757099325502,0.3466,4314.4,4313.9,0.344]
[1757099325699,0.7768,4314.4,4314.3,0.2241]
[1757099326707,0.7768,4314.4,4313.6,0.344]
[1757099327308,0.7768,4314.4,4314.3,0.2241]
[1757099327607,0.7768,4314.4,4314.0,0.344]
[1757099328309,0.7768,4314.4,4313.6,0.3377]
[1757099333214,0.5444,4313.6,4313.5,1.0038]
[1757099334023,0.60691454,4313.6,4313.5,1.0038]
[1757099337822,0.06251454,4313.6,4313.5,1.1361]
[1757099338726,0.60691454,4313.6,4313.5,1.1361]
[1757099339225,0.06251454,4313.6,4313.5,1.1361]
[1757099342923,0.06251454,4313.6,4313.5,1.55336]
[1757099343235,0.5444,4314.6,4314.5,0.7688]
[1757099344337,0.7593,4314.6,4314.5,0.7688]
[1757099345428,0.4391,4314.4,4314.3,0.235]
[1757099345626,0.7593,4314.4,4314.3,0.4432]
[1757099346932,0.7593,4314.4,4314.3,1.0038]
[1757099349038,0.7593,4314.4,4314.3,0.6661]
[1757099350137,0.7593,4314.4,4314.3,1.0038]
[1757099350629,0.7593,4314.4,4314.3,0.4432]
[1757099351529,0.7593,4314.4,4314.3,1.0038]
[1757099351937,0.7593,4314.4,4314.3,0.4432]
[1757099352336,0.7593,4314.4,4314.3,1.0038]
[1757099353330,0.1252,4315.0,4314.3,1.0038]
[1757099353535,0.7593,4314.8,4314.7,0.4311]
[1757099353736,1.35631705,4314.8,4314.7,0.2082]
[1757099354538,0.7593,4314.8,4314.7,0.7688]
[1757099355236,0.2242,4314.8,4314.7,0.4311]
[1757099355741,0.5444,4314.8,4314.7,0.7688]
[1757099356536,0.3202,4315.0,4314.8,0.3377]
[1757099356840,0.5444,4314.9,4314.8,0.7688]
[1757099357336,0.3202,4315.1,4314.9,0.3377]
[1757099357534,0.5444,4315.9,4315.8,0.4311]
[1757099357730,0.7593,4315.9,4315.8,0.7688]
[1757099357928,0.7593,4315.9,4315.8,0.4311]
[1757099358335,0.7593,4315.9,4315.8,0.2082]
[1757099360137,0.7593,4315.9,4315.5,0.3377]
[1757099360336,0.7593,4315.9,4315.1,0.3345]
[1757099361632,0.3202,4315.9,4315.8,0.2189]
[1757099361834,0.5281,4315.9,4315.8,0.7788]
[1757099362529,0.7378,4315.9,4315.8,0.7788]
[1757099362732,0.7378,4315.9,4315.8,0.4443]
[1757099363138,0.7378,4315.9,4315.8,0.2189]
[1757099363733,0.7378,4315.9,4315.5,0.3345]
[1757099363930,0.7378,4315.9,4315.1,0.3345]
[1757099366745,0.7378,4315.9,4315.8,0.2189]
[1757099369241,0.7378,4315.9,4315.5,0.3345]
[1757099370342,0.7378,4315.9,4315.1,0.3345]
[1757099370745,0.7378,4315.9,4315.8,0.2189]
[1757099372650,0.7378,4315.9,4315.5,0.3345]
[1757099373146,0.3328,4315.8,4315.4,3.2078]
[1757099373353,0.3328,4315.8,4315.7,0.2189]
[1757099373552,0.7504,4315.8,4315.7,0.2189]
[1757099378054,0.4176,4315.8,4315.4,3.7773]
[1757099378256,0.1287,4316.0,4315.6,0.2189]
[1757099378257,0.7504,4315.7,4315.6,0.2189]
[1757099378452,0.7504,4315.7,4315.6,0.7788]
[1757099378652,0.1287,4315.5,4315.4,3.4428]
[1757099378856,0.8791,4315.5,4315.4,3.6617]
[1757099379152,0.3328,4315.9,4315.4,4.2216]
[1757099379350,0.7504,4315.9,4315.8,0.4443]
[1757099380456,0.7504,4315.9,4315.8,0.7788]
[1757099381958,0.7504,4315.9,4315.8,0.4443]
[1757099382559,0.7504,4315.9,4315.8,0.7788]
[1757099383557,0.7504,4315.9,4315.8,0.4443]
[1757099383760,0.7504,4315.9,4315.5,0.3345]
[1757099384560,0.7504,4315.8,4315.7,0.2189]
[1757099385967,0.7504,4315.8,4315.7,0.5534]
[1757099386867,0.7504,4315.8,4315.7,0.7788]
[1757099387269,1.348409,4315.8,4315.7,0.7788]
[1757099387460,1.138709,4315.8,4315.7,0.7788]
[1757099387864,0.1275,4316.5,4315.7,0.7788]
[1757099388069,0.5407,4317.2,4317.1,0.4443]
[1757099388263,0.5407,4317.2,4317.1,1.0138]
[1757099388264,0.7504,4317.2,4317.1,1.0138]
[1757099389062,0.5407,4317.2,4317.1,1.33189944]
[1757099389468,0.323,4317.9,4317.3,0.4061]
[1757099389663,0.742,4317.9,4317.8,0.2043]
[1757099389869,0.742,4317.9,4317.8,0.75739944]
[1757099390487,0.742,4317.9,4317.8,1.07399944]
[1757099390686,0.742,4317.9,4317.8,0.95919944]
[1757099390886,0.742,4317.9,4317.8,1.27579944]
[1757099391584,0.5233,4317.9,4317.8,1.27579944]
[1757099391783,0.742,4318.4,4318.3,0.4061]
[1757099391977,0.742,4318.4,4318.3,1.27579944]
[1757099393385,0.742,4318.4,4318.3,1.27303136]
[1757099394191,0.742,4318.4,4318.3,0.9577]
[1757099397796,0.5233,4318.4,4318.3,0.9577]
[1757099397990,0.742,4318.9,4318.8,0.2018]
[1757099398293,0.742,4318.9,4318.8,0.9577]
[1757099400892,0.742,4318.9,4318.8,0.4393]
[1757099405595,0.323,4318.8,4318.1,0.3166]
[1757099405899,0.8617,4318.0,4317.9,0.5209]
[1757099406099,0.8617,4318.0,4317.9,0.7559]
[1757099406399,0.8617,4318.0,4317.9,0.5209]
[1757099406595,0.8617,4318.0,4317.9,0.235]
[1757099406795,0.8617,4318.0,4317.9,0.156]
[1757099407794,0.1197,4318.5,4317.9,0.156]
[1757099407795,0.323,4318.9,4318.4,0.3166]
[1757099407995,0.742,4318.9,4318.8,0.2043]
[1757099408388,0.742,4318.9,4318.5,0.235]
[1757099408592,0.419,4318.9,4318.5,0.235]
[1757099408892,0.419,4318.9,4318.8,0.2043]
[1757099409289,0.742,4318.9,4318.8,0.2043]
[1757099410001,0.742,4318.9,4318.6,0.235]
[1757099410195,0.742,4318.9,4317.3,3.5244]
[1757099410196,0.323,4317.9,4317.3,3.5244]
[1757099410397,0.8617,4317.5,4317.4,1.2533022]
[1757099410793,0.1197,4318.0,4317.4,1.2533022]
[1757099410993,0.742,4317.9,4317.8,0.2043]
[1757099411702,0.1197,4318.0,4317.8,0.4061]
[1757099412006,0.419,4317.9,4317.8,0.2043]
[1757099412497,0.419,4317.9,4317.4,0.5516]
[1757099412691,0.419,4317.9,4316.1,1.04252]
[1757099412692,0.742,4317.6,4316.8,3.2078]
[1757099412906,0.1197,4317.0,4316.9,0.5309287]
[1757099413202,0.8617,4317.0,4316.9,0.53115964]
[1757099413603,0.8617,4317.0,4316.9,0.50045964]
[1757099414102,0.8617,4317.0,4316.8,0.235]
[1757099414303,0.8617,4317.0,4316.9,0.29634927]
[1757099414505,0.8617,4317.0,4316.9,0.50064927]
[1757099415303,0.8617,4317.0,4316.9,0.29634927]
[1757099415605,0.742,4316.4,4316.3,3.9305]
[1757099415807,0.2003,4316.4,4316.3,4.22710036]
[1757099416704,0.5233,4316.4,4316.3,4.22710036]
[1757099417007,0.742,4316.4,4316.3,4.22710036]
[1757099417701,0.1197,4317.0,4316.3,4.22710036]
[1757099417907,0.742,4316.5,4316.4,1.01930036]
[1757099418110,0.8617,4316.5,4316.4,1.01930036]
[1757099420899,0.8617,4316.5,4316.4,0.70270036]
[1757099422405,0.8617,4316.5,4316.4,1.01490036]
[1757099423207,0.1197,4317.0,4316.4,1.01490036]
[1757099423409,0.7201,4316.7,4316.6,0.7288]
[1757099423604,0.7201,4316.7,4316.6,1.02540036]
[1757099424214,0.7201,4316.7,4316.6,0.7288]
[1757099426110,0.207,4316.7,4316.6,1.02528035]
[1757099426309,0.302,4317.0,4316.6,1.02528035]
[1757099426514,0.509,4317.0,4316.9,0.7288]
[1757099427608,0.7201,4317.0,4316.9,0.7288]
[1757099427810,0.8458,4317.0,4316.9,0.7288]
[1757099428015,0.7201,4317.0,4316.9,0.7288]
[1757099428613,3.2078,4317.3,4317.0,0.3122]
[1757099428804,3.2078,4317.8,4317.3,0.3122]
[1757099429010,3.2078,4317.8,4317.7,0.7288]
[1757099429311,3.7168,4317.8,4317.7,0.9638]
[1757099429509,3.2078,4317.8,4317.7,0.9638]
[1757099429703,3.2078,4317.8,4317.7,1.2601844]
[1757099429908,3.7168,4317.8,4317.7,1.2601844]
[1757099430314,3.4148,4317.8,4317.7,1.2601844]
[1757099430513,3.2078,4317.8,4317.7,1.2601844]
[1757099430915,3.7168,4317.8,4317.7,1.2601844]
[1757099431118,3.2078,4317.8,4317.7,1.2601844]
[1757099431303,0.7201,4318.4,4318.3,0.4166]
[1757099431510,0.7201,4318.4,4318.3,0.7288]
[1757099431706,0.7201,4318.4,4318.3,1.02517409]
[1757099432814,0.302,4318.9,4318.4,0.3122]
[1757099433009,0.1257,4319.0,4318.2,0.235]
[1757099433010,0.8458,4319.0,4318.9,0.4166]
[1757099433415,0.8458,4319.0,4318.9,0.2101]
[1757099434112,0.8458,4319.0,4318.6,3.4428]
[1757099434306,0.302,4318.9,4318.7,0.29640726]
[1757099434509,0.7201,4318.8,4318.7,0.7288]
[1757099434710,0.7201,4318.8,4318.7,1.02520726]
[1757099435614,0.3327,4319.0,4318.9,0.7288]
[1757099435818,0.5438,4319.0,4318.9,1.02520726]
[1757099436217,0.8458,4319.0,4318.9,1.02520726]
[1757099437312,0.8458,4319.0,4318.9,0.7288]
[1757099437919,0.8458,4319.0,4318.9,0.9638]
[1757099442418,0.8458,4319.0,4318.6,3.2078]
[1757099442622,0.7201,4318.8,4318.7,0.73625494]
[1757099443322,0.7201,4318.8,4318.7,1.25495494]
[1757099444423,0.7201,4318.8,4318.7,0.70775494]
[1757099444728,0.7201,4318.8,4318.7,0.4451]
[1757099448023,0.7201,4318.8,4318.7,0.7573]
[1757099448929,0.7201,4318.8,4318.7,0.4451]
[1757099449626,0.3143,4318.7,4318.6,3.2078]
[1757099449828,0.722,4318.7,4318.6,3.4428]
[1757099450131,0.722,4318.7,4318.6,3.6528]
[1757099451225,0.722,4318.7,4318.6,3.4428]
[1757099452120,0.722,4318.7,4318.6,3.6528]
[1757099452324,0.722,4318.7,4318.6,3.94430435]
[1757099452720,0.722,4318.7,4318.6,4.46190435]
[1757099453330,0.722,4318.7,4318.6,4.14920435]
[1757099453533,0.722,4318.7,4318.6,3.94430435]
[1757099454234,0.722,4318.7,4318.6,0.73650435]
[1757099454534,0.722,4318.7,4318.6,0.29150435]
[1757099454833,0.722,4318.7,4318.5,0.235]
[1757099455131,0.3143,4318.6,4318.3,0.235]
[1757099455326,0.722,4318.4,4318.3,0.235]
[1757099455530,0.722,4318.4,4318.3,0.73696647]
[1757099456122,0.722,4318.4,4318.3,0.29196647]
[1757099457228,0.3143,4318.3,4318.0,3.2078]
[1757099457533,0.2121,4318.1,4318.0,4.0527]
[1757099457934,3.5221,4318.5,4318.1,0.3127]
[1757099458128,3.9298,4318.5,4318.4,0.7276]
[1757099459429,7.96876,4318.5,4318.0,3.5205]
[1757099459633,0.722,4318.2,4318.1,0.235]
[1757099460236,0.3143,4318.1,4318.0,3.2078]
[1757099460437,0.722,4318.1,4318.0,3.2078]
[1757099460638,0.722,4318.1,4318.0,3.7305]
[1757099460834,0.722,4318.1,4318.0,3.2078]
[1757099461033,4.722,4318.1,4318.0,3.2078]
[1757099461240,5.31843503,4318.1,4318.0,3.2078]
[1757099461440,4.95359001,4318.1,4318.0,3.2078]
[1757099461839,4.722,4318.1,4318.0,3.2078]
[1757099463437,0.722,4317.6,4317.5,0.7577]
[1757099463637,0.722,4317.6,4317.5,0.5227]
[1757099464031,0.722,4317.1,4316.9,0.235]
[1757099464232,0.8437,4317.0,4316.9,0.235]
[1757099464737,0.722,4317.0,4316.9,0.7577]
[1757099465132,0.722,4317.0,4316.9,0.9626]
[1757099467032,0.722,4317.0,4316.9,0.7276]
[1757099469747,0.4077,4317.0,4316.9,0.7276]
[1757099471151,0.722,4317.0,4316.9,0.7276]
[1757099473351,0.2121,4317.0,4316.9,0.7276]
[1757099474347,0.235,4317.7,4317.6,0.4149]
[1757099474348,0.5264,4317.7,4317.6,0.4149]
[1757099474548,0.5264,4317.7,4317.6,0.7276]
[1757099474750,0.722,4317.7,4317.6,0.7276]
[1757099475351,3.4428,4317.8,4317.7,0.3127]
[1757099475352,3.2078,4317.8,4317.7,0.3127]
[1757099475545,3.2078,4317.8,4317.7,0.7276]
[1757099476458,0.3143,4318.4,4317.8,0.3127]
[1757099476657,0.722,4318.4,4318.3,0.5227]
[1757099476859,0.722,4318.4,4318.3,0.7276]
[1757099477359,0.2121,4318.4,4318.3,0.7276]
[1757099477751,3.2078,4318.5,4318.3,0.7276]
[1757099477957,0.2121,4318.5,4318.4,0.7276]
[1757099478149,0.2121,4318.6,4318.5,0.8367]
[1757099478563,0.6976,4318.6,4318.5,0.8367]
[1757099478951,0.6976,4318.6,4318.5,0.7194]
[1757099479463,3.9054,4318.6,4318.5,0.7194]
[1757099479651,0.6976,4318.6,4318.5,0.7194]
[1757099479855,3.9054,4318.6,4318.5,0.7194]
[1757099480057,0.2121,4318.6,4318.5,0.8435]
[1757099480260,3.2078,4318.7,4318.5,0.5308]
[1757099480462,3.2078,4318.7,4318.6,0.7095]
[1757099481356,3.9055,4318.7,4318.1,0.3056]
[1757099481768,4.1405,4318.7,4318.1,0.3056]
[1757099482863,3.9055,4318.7,4318.1,0.3056]
[1757099483063,4.1405,4318.7,4318.1,0.3056]
[1757099486461,0.2122,4318.2,4318.1,0.7095]
[1757099486765,0.5023,4318.2,4318.1,0.7095]
[1757099487162,0.6977,4318.2,4318.1,0.7095]
[1757099489364,3.2078,4318.7,4318.5,0.1241]
[1757099489570,0.2122,4318.7,4318.6,0.7095]
[1757099489869,0.5023,4318.7,4318.6,0.7095]
[1757099490065,0.2122,4318.7,4318.6,0.7095]
[1757099490268,3.42,4319.1,4319.0,0.8336]
[1757099490471,0.2122,4319.1,4319.0,0.8336]
[1757099490668,0.6977,4319.1,4319.0,0.8336]
[1757099491671,0.6977,4319.1,4319.0,0.7095]
[1757099493164,0.6977,4319.1,4319.0,0.5074]
[1757099493371,0.6977,4319.1,4319.0,0.7095]
[1757099494272,0.2122,4319.1,4319.0,0.8336]
[1757099495071,3.2078,4319.2,4319.0,0.8336]
[1757099495273,0.2122,4319.2,4319.1,0.7095]
[1757099495473,3.6154,4319.7,4319.6,0.2018]
[1757099495773,3.6154,4319.7,4319.6,0.7095]
[1757099495965,3.9055,4319.7,4319.6,0.7095]
[1757099496168,3.9055,4319.7,4319.1,0.3056]
[1757099498964,0.2122,4318.7,4318.6,0.7095]
[1757099499170,0.6977,4318.7,4318.6,0.7095]
[1757099502374,0.4076,4318.7,4318.6,0.7095]
[1757099502769,0.2122,4318.7,4318.6,0.7095]
[1757099503578,0.5023,4318.7,4318.6,0.7095]
[1757099504280,0.2122,4318.7,4318.6,0.7095]
[1757099504878,3.4979,4319.3,4318.7,0.3056]
[1757099505083,3.9055,4319.3,4319.2,0.7095]
[1757099505580,0.5023,4319.3,4319.2,0.7095]
[1757099505776,0.2122,4319.3,4319.2,0.7095]
[1757099507886,0.5023,4319.6,4319.5,0.8336]
[1757099508085,0.2122,4319.6,4319.5,0.8336]
[1757099508479,3.4979,4319.8,4319.5,0.8336]
[1757099508480,3.7184,4319.8,4319.7,0.7145]
[1757099508784,4.5220714,4319.8,4319.7,0.7145]
[1757099509380,3.9255,4319.8,4319.7,0.7145]
[1757099510891,0.7177,4319.8,4319.7,0.7145]
[1757099516495,0.7177,4319.8,4319.7,0.5136]
[1757099518398,1.31445897,4319.8,4319.7,0.5136]
[1757099518793,4.20705897,4319.8,4319.1,0.235]
[1757099518994,0.1954,4319.3,4319.2,0.3984]
[1757099519193,0.3152,4319.2,4319.0,0.5511]
[1757099519394,0.4025,4319.1,4319.0,0.7486]
[1757099519594,0.7177,4319.1,4319.0,0.7486]
[1757099519795,0.7177,4319.1,4319.0,0.5136]
[1757099521892,0.7177,4319.1,4319.0,0.7145]
[1757099523198,0.7177,4319.1,4319.0,0.8344]
[1757099523999,0.4025,4319.1,4319.0,0.8344]
[1757099524499,0.2071,4319.1,4319.0,0.8344]
[1757099525008,0.6375,4319.8,4319.0,0.1199]
[1757099525203,0.2071,4319.2,4319.1,0.7145]
[1757099525897,0.7177,4319.2,4319.1,0.7145]
[1757099526093,0.7177,4319.2,4318.6,0.3161]
[1757099526295,0.1162,4319.5,4318.3,3.2078]
[1757099526296,0.7177,4318.4,4318.3,3.4053]
[1757099526504,0.7177,4318.4,4318.3,3.2078]
[1757099527091,0.99973335,4318.4,4317.7,0.3161]
[1757099527296,0.4025,4317.8,4317.7,0.5136]
[1757099527495,0.7177,4317.8,4317.7,0.7145]
[1757099527703,0.2071,4317.8,4317.7,0.7145]
[1757099532907,0.3152,4318.1,4317.7,0.3984]
[1757099533109,0.5223,4318.1,4318.0,0.8344]
[1757099533310,0.2071,4318.1,4318.0,0.8344]
[1757099534209,0.7177,4319.6,4319.5,0.7145]
[1757099534400,1.31363757,4319.6,4319.5,0.7145]
[1757099534803,0.7177,4319.6,4319.5,0.7145]
[1757099535008,0.7177,4319.6,4319.5,0.8344]
[1757099535707,0.4025,4319.6,4319.5,0.8344]
[1757099536211,0.2071,4319.6,4319.5,0.8344]
[1757099538305,0.5223,4319.6,4319.5,0.8344]
[1757099538612,0.2071,4319.6,4319.5,0.8344]
[1757099540416,0.7067,4319.6,4319.5,0.8344]
[1757099541304,0.7067,4319.6,4319.5,0.7145]
[1757099541504,0.7067,4319.6,4318.9,0.5279]
[1757099541505,0.1987,4319.0,4318.9,0.5279]
[1757099541812,0.8228,4319.0,4318.6,0.321]
[1757099542204,0.5201,4319.0,4318.9,0.2069]
[1757099542407,0.5201,4319.0,4318.9,0.5279]